[Event "Top 12 FRA-chT 2017"]
[Site "Chartres"]
[Date "2017.05.20"]
[Round "3"]
[White "Aflalo, Sophie"]
[Black "Caron, Damien"]
[Result "1-0"]
[ECO "B42"]
[WhiteElo "2135"]
[BlackElo "2024"]
[Annotator "NA"]
[PlyCount "59"]
[EventDate "2017.??.??"]
[EventType "team-tourn"]
[EventCountry "FRA"]
[SourceTitle "playchess.com"]
[Source "ChessBase"]
[SourceQuality "1"]
[WhiteTeam "Tremblay-En-France"]
[BlackTeam "Montpellier"]
[TimeControl "40/5400+30:1800+30"]

1. e4 {[%emt 0:00:00]} c5 {[%emt 0:00:04]} 2. Nf3 {[%emt 0:00:00]} e6 {[%emt 0:00:05]} 3. d4 {[%emt 0:00:00]} cxd4 {[%emt 0:00:04]} 4. Nxd4 {[%emt 0:00:00]} a6 {[%emt 0:00:07]} 5. Bd3 {[%emt 0:00:14]} Nf6 {[%emt 0:00:28]} 6. O-O {[%emt 0:00:30]} Qc7 {[%emt 0:00:07]} 7. Nc3 {[%emt 0:03:45]} Nc6 {[%emt 0:11:18]} 8. Nb3 {[%emt 0:01:27]} b5 {[%emt 0:02:41]} 9. f4 {[%emt 0:00:56]} d6 {[%emt 0:03:49]} 10. Be3 {[%emt 0:02:20]} Be7 {[%emt 0:00:42]} 11. Kh1 {[%emt 0:03:56]} Bb7 {[%emt 0:07:47]} 12. a4 b4 {[%emt 0:01:10]} 13. Na2 {[%emt 0:01:08]} O-O {[%emt 0:05:50]} 14. Qe1 {[%emt 0:13:11]} e5 {[%emt 0:09:46]} 15. Nxb4 {[%emt 0:08:13]} Nxb4 {[%emt 0:03:27]} 16. Qxb4 {[%emt 0:00:04]} a5 {[%emt 0:09:57]} 17. Nxa5 {[%emt 0:01:32]} exf4 {[%emt 0:06:34]} 18. Bb6 {[%emt 0:00:58]} Qc8 {[%emt 0:00:34]} 19. Rxf4 {[%emt 0:01:00]} Nd7 {[%emt 0:00:17]} 20. Bd4 {[%emt 0:01:31]} Ba6 {[%emt 0:00:15]} 21. Bb5 {[%emt 0:02:38]} Bxb5 {[%emt 0:01:50]} 22. Qxb5 {[%emt 0:01:51]} Ne5 {[%emt 0:01:24]} 23. Bxe5 {[%emt 0:06:49]} dxe5 {[%emt 0:00:58]} 24. Nc6 {[%emt 0:00:23]} Bd6 {[%emt 0:03:06]} 25. Rf2 {[%emt 0:01:57]} Ra6 {[%emt 0:00:48]} 26. Nxe5 {[%emt 0:00:56]} Bc5 {[%emt 0:01:27]} 27. Rxf7 {[%emt 0:06:44]} Rxf7 {[%emt 0:06:55]} 28. Qc4 {[%emt 0:01:09]} Raf6 {[%emt 0:00:52]} 29. Nxf7 {[%emt 0:03:02]} Rxf7 {[%emt 0:00:14]} 30. Rf1 {[%emt 0:00:33]} 1-0

[Event "Top 12 FRA-chT 2017"]
[Site "Chartres"]
[Date "2017.05.20"]
[Round "3"]
[White "De Seroux, Camille"]
[Black "Leconte, Maria"]
[Result "1-0"]
[ECO "C03"]
[WhiteElo "2117"]
[BlackElo "2174"]
[Annotator "NA"]
[PlyCount "95"]
[EventDate "2017.??.??"]
[EventType "team-tourn"]
[EventCountry "FRA"]
[SourceTitle "playchess.com"]
[Source "ChessBase"]
[SourceQuality "1"]
[WhiteTeam "Grasse Echecs"]
[BlackTeam "Saint Quentin"]
[TimeControl "40/5400+30:1800+30"]

1. e4 {[%emt 0:00:00]} e6 {[%emt 0:00:04]} 2. d4 {[%emt 0:00:00]} d5 {[%emt 0:00:04]} 3. Nd2 {[%emt 0:00:00]} Ne7 {[%emt 0:00:06]} 4. Bd3 {[%emt 0:09:41]} Nd7 {[%emt 0:00:12]} 5. c3 {[%emt 0:02:48]} g6 {[%emt 0:00:40]} 6. Ngf3 {[%emt 0:05:16]} Bg7 {[%emt 0:00:12]} 7. O-O {[%emt 0:00:15]} O-O {[%emt 0:00:10]} 8. Re1 {[%emt 0:00:38]} c5 {[%emt 0:00:32]} 9. exd5 {[%emt 0:12:41]} exd5 {[%emt 0:00:35]} 10. Bc2 {[%emt 0:05:55]} Nc6 {[%emt 0:07:25]} 11. dxc5 {[%emt 0:04:13]} Nxc5 {[%emt 0:01:37]} 12. Nb3 {[%emt 0:01:11]} b6 {[%emt 0:20:00]} 13. Bg5 {[%emt 0:07:39]} f6 {[%emt 0:15:10]} 14. Be3 {[%emt 0:09:44]} Ne4 {[%emt 0:01:17]} 15. c4 {[%emt 0:08:10]} Nb4 {[%emt 0:07:24]} 16. cxd5 {[%emt 0:02:03]} Nxc2 {[%emt 0:00:08]} 17. Qxc2 {[%emt 0:00:11]} Qxd5 {[%emt 0:00:35]} 18. Rad1 {[%emt 0:14:23]} Qb7 {[%emt 0:00:14]} 19. Bf4 {[%emt 0:03:25]} f5 {[%emt 0:04:48]} 20. Be5 {[%emt 0:03:14]} Bxe5 {[%emt 0:09:41]} 21. Nxe5 {[%emt 0:00:05]} Re8 {[%emt 0:00:25]} 22. Nc4 {[%emt 0:02:59]} Qc7 {[%emt 0:03:50]} 23. f3 {[%emt 0:03:55]} Nd6 {[%emt 0:05:11]} 24. Rxe8+ {[%emt 0:01:05]} Nxe8 {[%emt 0:00:03]} 25. Qd3 {[%emt 0:01:56]} Be6 {[%emt 0:00:35]} 26. Ne3 {[%emt 0:00:18]} Nf6 {[%emt 0:01:53]} 27. a3 {[%emt 0:01:10]} f4 {[%emt 0:01:49]} 28. Nd4 {[%emt 0:00:28]} Bf7 {[%emt 0:02:20]} 29. Nec2 {[%emt 0:00:15]} Re8 {[%emt 0:01:15]} 30. Nb5 {[%emt 0:00:37]} Qc5+ {[%emt 0:00:26]} 31. Nbd4 {[%emt 0:00:40]} Bc4 {[%emt 0:07:51]} 32. Qd2 {[%emt 0:00:30]} Nd5 {[%emt 0:00:42]} 33. b4 {[%emt 0:00:20]} Qd6 {[%emt 0:02:43]} 34. Re1 {[%emt 0:00:11]} Rxe1+ {[%emt 0:00:20]} 35. Qxe1 {[%emt 0:00:51]} Ne3 {[%emt 0:00:20]} 36. Qc3 {[%emt 0:00:24]} Nxc2 {[%emt 0:02:55]} 37. Qxc4+ {[%emt 0:00:32]} Kg7 {[%emt 0:00:12]} 38. Nxc2 {[%emt 0:00:44]} Qd1+ {[%emt 0:01:41]} 39. Kf2 {[%emt 0:00:09]} Qd2+ {[%emt 0:00:07]} 40. Qe2 {[%emt 0:00:22]} Qc3 {[%emt 0:30:04]} 41. Qe7+ {[%emt 0:30:39]} Kh6 {[%emt 0:01:10]} 42. Qe4 {[%emt 0:00:00]} Qd2+ {[%emt 0:00:00]} 43. Qe2 {[%emt 0:00:00]} Qc3 {[%emt 0:00:00]} 44. g3 {[%emt 0:00:00]} g5 {[%emt 0:00:00]} 45. Kg2 {[%emt 0:00:00]} a5 {[%emt 0:00:00]} 46. Qd1 {[%emt 0:00:00]} a4 {[%emt 0:00:00]} 47. Qd6+ {[%emt 0:00:00]} Kg7 {[%emt 0:00:00]} 48. Qd4+ {[%emt 0:00:00]} 1-0

[Event "Top 12 FRA-chT 2017"]
[Site "Chartres"]
[Date "2017.05.20"]
[Round "3"]
[White "Haussernot, Cecile"]
[Black "Roos, Louis"]
[Result "1-0"]
[ECO "B42"]
[WhiteElo "2099"]
[BlackElo "2346"]
[Annotator "NA"]
[PlyCount "93"]
[EventDate "2017.??.??"]
[EventType "team-tourn"]
[EventCountry "FRA"]
[SourceTitle "playchess.com"]
[Source "ChessBase"]
[SourceQuality "1"]
[WhiteTeam "Mulhouse Philidor"]
[BlackTeam "Strasbourg"]
[TimeControl "40/5400+30:1800+30"]

1. e4 {[%emt 0:00:00]} c5 {[%emt 0:01:35]} 2. Nf3 {[%emt 0:00:00]} e6 {[%emt 0:03:08]} 3. d4 {[%emt 0:00:46]} cxd4 {[%emt 0:00:33]} 4. Nxd4 {[%emt 0:00:05]} a6 {[%emt 0:00:58]} 5. Bd3 {[%emt 0:00:43]} Ne7 {[%emt 0:03:13]} 6. O-O {[%emt 0:08:07]} Nbc6 {[%emt 0:01:36]} 7. Be3 {[%emt 0:00:44]} g6 {[%emt 0:22:41]} 8. Nd2 {[%emt 0:13:16]} Bg7 {[%emt 0:04:44]} 9. Nxc6 {[%emt 0:09:56]} Nxc6 {[%emt 0:10:51]} 10. Nc4 {[%emt 0:01:26]} d5 {[%emt 0:16:04]} 11. exd5 {[%emt 0:02:39]} exd5 {[%emt 0:00:19]} 12. Bb6 {[%emt 0:02:53]} Qe7 {[%emt 0:00:25]} 13. Re1 {[%emt 0:01:38]} Be6 {[%emt 0:00:16]} 14. Ne3 {[%emt 0:00:31]} O-O {[%emt 0:10:42]} 15. Nxd5 {[%emt 0:09:34]} Qd6 {[%emt 0:09:09]} 16. Nc7 {[%emt 0:01:49]} Bxb2 {[%emt 0:02:55]} 17. Nxe6 {[%emt 0:08:44]} fxe6 {[%emt 0:02:04]} 18. Bc4 {[%emt 0:01:47]} Qf4 {[%emt 0:04:50]} 19. Bxe6+ {[%emt 0:02:13]} Kh8 {[%emt 0:00:11]} 20. g3 {[%emt 0:12:49]} Qf6 {[%emt 0:00:42]} 21. Rb1 {[%emt 0:01:57]} Bd4 {[%emt 0:01:58]} 22. Bxd4 {[%emt 0:01:14]} Nxd4 {[%emt 0:00:10]} 23. Bd5 {[%emt 0:01:33]} Qxf2+ {[%emt 0:00:51]} 24. Kh1 {[%emt 0:00:02]} Rad8 {[%emt 0:00:34]} 25. c4 {[%emt 0:01:38]} b5 {[%emt 0:00:29]} 26. Re7 {[%emt 0:07:49]} Nf3 {[%emt 0:01:11]} 27. Re2 {[%emt 0:00:23]} Qc5 {[%emt 0:00:36]} 28. Rb3 {[%emt 0:02:43]} bxc4 {[%emt 0:00:46]} 29. Rxf3 {[%emt 0:00:43]} Rxd5 {[%emt 0:00:32]} 30. Rxf8+ {[%emt 0:05:03]} Qxf8 {[%emt 0:00:09]} 31. Qe1 {[%emt 0:00:58]} Qf3+ {[%emt 0:00:33]} 32. Kg1 {[%emt 0:00:04]} Rf5 {[%emt 0:00:15]} 33. Re3 {[%emt 0:02:01]} Qd5 {[%emt 0:00:55]} 34. Re8+ {[%emt 0:00:33]} Kg7 {[%emt 0:00:11]} 35. Re7+ {[%emt 0:00:34]} Kf6 {[%emt 0:01:09]} 36. Rxh7 {[%emt 0:00:30]} Qc5+ {[%emt 0:00:09]} 37. Kg2 {[%emt 0:00:21]} c3 {[%emt 0:00:19]} 38. g4 {[%emt 0:00:42]} c2 {[%emt 0:00:20]} 39. gxf5 {[%emt 0:00:20]} c1=Q {[%emt 0:00:07]} 40. Qe6+ {[%emt 0:00:08]} Kg5 {[%emt 0:30:29]} 41. Qxg6+ {[%emt 0:30:28]} Kf4 {[%emt 0:00:49]} 42. Qg3+ {[%emt 0:00:00]} Ke4 {[%emt 0:00:00]} 43. Rh4+ {[%emt 0:00:00]} Kd5 {[%emt 0:00:00]} 44. Qd3+ {[%emt 0:00:00]} Ke5 {[%emt 0:00:00]} 45. Re4+ {[%emt 0:00:00]} Kxf5 {[%emt 0:00:23]} 46. Qf3+ {[%emt 0:00:00]} Kg6 {[%emt 0:01:45]} 47. Re6+ {[%emt 0:00:00]} 1-0

[Event "Top 12 FRA-chT 2017"]
[Site "Chartres"]
[Date "2017.05.20"]
[Round "3"]
[White "Marchadour, Emilie"]
[Black "Guichard, Pauline"]
[Result "0-1"]
[ECO "B06"]
[WhiteElo "2097"]
[BlackElo "2312"]
[Annotator "NA"]
[PlyCount "54"]
[EventDate "2017.??.??"]
[EventType "team-tourn"]
[EventCountry "FRA"]
[SourceTitle "playchess.com"]
[Source "ChessBase"]
[SourceQuality "1"]
[WhiteTeam "Lisieux"]
[BlackTeam "Clichy"]
[TimeControl "40/5400+30:1800+30"]

1. e4 {[%emt 0:00:00]} g6 {[%emt 0:00:04]} 2. d4 {[%emt 0:00:00]} Bg7 {[%emt 0:00:05]} 3. Nf3 {[%emt 0:00:11]} d6 {[%emt 0:00:10]} 4. h3 {[%emt 0:00:29]} Nd7 {[%emt 0:01:18]} 5. Nc3 {[%emt 0:02:08]} c5 {[%emt 0:03:41]} 6. Be3 {[%emt 0:01:05]} cxd4 {[%emt 0:10:04]} 7. Bxd4 {[%emt 0:02:12]} Ngf6 {[%emt 0:00:12]} 8. Bc4 {[%emt 0:04:09]} O-O {[%emt 0:01:08]} 9. O-O {[%emt 0:00:16]} b6 {[%emt 0:01:32]} 10. e5 {[%emt 0:05:25]} dxe5 {[%emt 0:23:16]} 11. Nxe5 {[%emt 0:15:25]} Bb7 {[%emt 0:00:58]} 12. Nxd7 {[%emt 0:14:04]} Qxd7 {[%emt 0:00:27]} 13. Bxf6 {[%emt 0:00:51]} Qxd1 {[%emt 0:00:07]} 14. Raxd1 {[%emt 0:00:08]} Bxf6 {[%emt 0:00:18]} 15. Nd5 {[%emt 0:00:06]} Bg5 {[%emt 0:00:25]} 16. f4 {[%emt 0:03:48]} Bh4 {[%emt 0:00:11]} 17. g3 {[%emt 0:04:05]} Bxg3 {[%emt 0:13:35]} 18. Nxe7+ {[%emt 0:02:38]} Kg7 {[%emt 0:00:08]} 19. Rd7 {[%emt 0:03:10]} Be4 {[%emt 0:03:58]} 20. f5 {[%emt 0:09:59]} Bxc2 {[%emt 0:03:53]} 21. fxg6 {[%emt 0:01:15]} hxg6 {[%emt 0:00:39]} 22. Bd5 {[%emt 0:09:33]} Rae8 {[%emt 0:00:18]} 23. Rxa7 {[%emt 0:03:24]} Bd6 {[%emt 0:00:47]} 24. Nc6 {[%emt 0:03:23]} Bf5 {[%emt 0:00:34]} 25. Kg2 {[%emt 0:02:19]} Re2+ {[%emt 0:01:27]} 26. Kf3 {[%emt 0:01:44]} Rfe8 {[%emt 0:04:14]} 27. Rxf7+ {[%emt 0:01:00]} Kh6 {[%emt 0:00:06]} 0-1

[Event "Top 12 FRA-chT 2017"]
[Site "Chartres"]
[Date "2017.05.20"]
[Round "3"]
[White "Caron, Damien"]
[Black "Aflalo, Sophie"]
[Result "*"]
[WhiteElo "2024"]
[BlackElo "2135"]
[Annotator "NA"]
[PlyCount "21"]
[EventDate "2017.??.??"]
[EventType "team-tourn"]
[EventCountry "FRA"]
[SourceTitle "playchess.com"]
[Source "ChessBase"]
[SourceQuality "1"]
[WhiteTeam "Montpellier"]
[BlackTeam "Tremblay-En-France"]
[TimeControl "40/5400+30:1800+30"]

1. e4 {[%emt 0:00:00]} c5 {[%emt 0:00:04]} 2. Nf3 {[%emt 0:00:00]} e6 {[%emt 0:00:05]} 3. d4 {[%emt 0:00:00]} cxd4 {[%emt 0:00:04]} 4. Nxd4 {[%emt 0:00:00]} a6 {[%emt 0:00:07]} 5. Bd3 {[%emt 0:00:14]} Nf6 {[%emt 0:00:28]} 6. O-O {[%emt 0:00:30]} Qc7 {[%emt 0:00:07]} 7. Nc3 {[%emt 0:03:45]} Nc6 {[%emt 0:11:18]} 8. Nb3 {[%emt 0:01:27]} b5 {[%emt 0:02:41]} 9. f4 {[%emt 0:00:56]} d6 {[%emt 0:03:49]} 10. Be3 {[%emt 0:02:20]} Be7 {[%emt 0:00:42]} 11. Kh1 {[%emt 0:03:56]} *

[Event "Top 12 FRA-chT 2017"]
[Site "Chartres"]
[Date "2017.05.21"]
[Round "4"]
[White "Nezar, Mustapha"]
[Black "Marchadour, Emilie"]
[Result "1-0"]
[ECO "A56"]
[WhiteElo "2354"]
[BlackElo "2097"]
[Annotator "NA"]
[PlyCount "75"]
[EventDate "2017.??.??"]
[EventType "team-tourn"]
[EventCountry "FRA"]
[SourceTitle "playchess.com"]
[Source "ChessBase"]
[SourceQuality "1"]
[WhiteTeam "Vandoeuvre"]
[BlackTeam "Lisieux"]
[TimeControl "40/5400+30:1800+30"]

1. d4 {[%emt 0:00:14]} Nf6 {[%emt 0:00:08]} 2. c4 {[%emt 0:00:13]} c5 {[%emt 0:00:06]} 3. Nf3 {[%emt 0:00:34]} cxd4 {[%emt 0:02:31]} 4. Nxd4 {[%emt 0:00:07]} Nc6 {[%emt 0:00:09]} 5. Nc3 {[%emt 0:01:00]} g6 {[%emt 0:01:43]} 6. g3 {[%emt 0:02:20]} Bg7 {[%emt 0:00:15]} 7. Bg2 {[%emt 0:02:15]} O-O {[%emt 0:02:28]} 8. O-O {[%emt 0:02:12]} Nxd4 {[%emt 0:07:26]} 9. Qxd4 {[%emt 0:01:24]} d6 {[%emt 0:00:14]} 10. Bg5 {[%emt 0:09:15]} Be6 {[%emt 0:06:54]} 11. Qh4 {[%emt 0:04:53]} Rb8 {[%emt 0:28:12]} 12. Rac1 {[%emt 0:17:55]} Qa5 {[%emt 0:02:40]} 13. Bd2 {[%emt 0:18:22]} Rfc8 {[%emt 0:07:52]} 14. b3 {[%emt 0:04:07]} Qd8 {[%emt 0:20:29]} 15. Rfd1 {[%emt 0:05:40]} Rc5 {[%emt 0:00:51]} 16. Bf3 {[%emt 0:04:01]} Nd7 {[%emt 0:07:09]} 17. Ne4 {[%emt 0:06:53]} Re5 {[%emt 0:07:34]} 18. Bc3 {[%emt 0:04:38]} h6 {[%emt 0:00:22]} 19. Bxe5 {[%emt 0:01:42]} Nxe5 {[%emt 0:00:04]} 20. Qf4 {[%emt 0:00:50]} Nxf3+ {[%emt 0:02:01]} 21. Qxf3 {[%emt 0:00:40]} Qa5 {[%emt 0:00:44]} 22. a4 {[%emt 0:01:49]} Bf5 {[%emt 0:00:30]} 23. Nc3 {[%emt 0:01:07]} Qe5 {[%emt 0:00:35]} 24. e4 {[%emt 0:02:16]} Be6 {[%emt 0:00:32]} 25. Nd5 {[%emt 0:00:55]} Bd7 {[%emt 0:00:24]} 26. Qf4 {[%emt 0:01:06]} Qb2 {[%emt 0:00:40]} 27. Nxe7+ {[%emt 0:00:15]} Kh7 {[%emt 0:00:05]} 28. Rxd6 {[%emt 0:02:06]} Be8 {[%emt 0:00:59]} 29. Rd3 {[%emt 0:00:32]} Bd4 {[%emt 0:00:19]} 30. Qd2 {[%emt 0:01:07]} Bxf2+ {[%emt 0:00:16]} 31. Kxf2 {[%emt 0:00:20]} Qf6+ {[%emt 0:00:03]} 32. Qf4 {[%emt 0:00:30]} Qxe7 {[%emt 0:00:23]} 33. Qxb8 {[%emt 0:00:56]} Qxe4 {[%emt 0:00:07]} 34. Rd8 {[%emt 0:01:13]} Qf5+ {[%emt 0:00:26]} 35. Qf4 {[%emt 0:00:47]} Qc5+ {[%emt 0:00:03]} 36. Qd4 {[%emt 0:00:38]} Qf5+ {[%emt 0:00:13]} 37. Kg1 {[%emt 0:00:32]} Bc6 {[%emt 0:00:46]} 38. Qh8# {[%emt 0:00:10]} 1-0

[Event "Top 12 FRA-chT 2017"]
[Site "Chartres"]
[Date "2017.05.21"]
[Round "4"]
[White "Roos, Louis"]
[Black "Dionisi, Thomas"]
[Result "1/2-1/2"]
[ECO "A04"]
[WhiteElo "2346"]
[BlackElo "2392"]
[Annotator "NA"]
[PlyCount "90"]
[EventDate "2017.??.??"]
[EventType "team-tourn"]
[EventCountry "FRA"]
[SourceTitle "playchess.com"]
[Source "ChessBase"]
[SourceQuality "1"]
[WhiteTeam "Strasbourg"]
[BlackTeam "Bois-Colombes"]
[TimeControl "40/5400+30:1800+30"]

1. Nf3 {[%emt 0:00:00]} f5 {[%emt 0:00:12]} 2. g3 {[%emt 0:00:51]} g6 {[%emt 0:00:13]} 3. Bg2 {[%emt 0:04:18]} Bg7 {[%emt 0:00:18]} 4. d3 {[%emt 0:04:10]} Nf6 {[%emt 0:02:05]} 5. O-O {[%emt 0:00:23]} O-O {[%emt 0:00:10]} 6. c4 {[%emt 0:11:56]} d6 {[%emt 0:01:00]} 7. Nc3 {[%emt 0:00:31]} Nc6 {[%emt 0:02:03]} 8. Rb1 {[%emt 0:00:49]} a5 {[%emt 0:03:23]} 9. a3 {[%emt 0:02:24]} e5 {[%emt 0:00:16]} 10. b4 {[%emt 0:04:17]} axb4 {[%emt 0:00:25]} 11. axb4 {[%emt 0:00:11]} h6 {[%emt 0:00:16]} 12. Ne1 {[%emt 0:09:03]} g5 {[%emt 0:22:24]} 13. Nc2 {[%emt 0:07:07]} f4 {[%emt 0:01:46]} 14. b5 {[%emt 0:03:08]} Nd4 {[%emt 0:08:30]} 15. Nd5 {[%emt 0:14:05]} Nxd5 {[%emt 0:04:51]} 16. Bxd5+ {[%emt 0:06:09]} Kh8 {[%emt 0:00:06]} 17. Nxd4 {[%emt 0:02:00]} exd4 {[%emt 0:00:04]} 18. Bb2 {[%emt 0:00:31]} Be5 {[%emt 0:06:00]} 19. e3 {[%emt 0:08:07]} Qf6 {[%emt 0:10:56]} 20. exd4 {[%emt 0:06:53]} Bxd4 {[%emt 0:00:15]} 21. Bxd4 {[%emt 0:00:16]} Qxd4 {[%emt 0:00:03]} 22. Qh5 {[%emt 0:00:16]} Qg7 {[%emt 0:02:16]} 23. Rbe1 {[%emt 0:00:49]} Bf5 {[%emt 0:07:03]} 24. Bxb7 {[%emt 0:01:21]} Bg6 {[%emt 0:05:10]} 25. Qd1 {[%emt 0:00:56]} Rae8 {[%emt 0:01:47]} 26. Rxe8 {[%emt 0:01:40]} Rxe8 {[%emt 0:00:27]} 27. Bc6 {[%emt 0:01:59]} Rf8 {[%emt 0:04:56]} 28. d4 {[%emt 0:00:27]} Qf6 {[%emt 0:00:45]} 29. c5 {[%emt 0:00:59]} h5 {[%emt 0:04:05]} 30. cxd6 {[%emt 0:03:37]} Qxd6 {[%emt 0:01:09]} 31. Qe2 {[%emt 0:04:13]} Qxd4 {[%emt 0:08:40]} 32. Qe7 {[%emt 0:00:25]} Qd8 {[%emt 0:00:09]} 33. Re1 {[%emt 0:00:26]} Qxe7 {[%emt 0:02:30]} 34. Rxe7 {[%emt 0:00:12]} fxg3 {[%emt 0:01:27]} 35. hxg3 {[%emt 0:00:55]} Rf7 {[%emt 0:00:10]} 36. Re5 {[%emt 0:00:55]} Rf5 {[%emt 0:00:38]} 37. Re7 {[%emt 0:00:25]} Rf7 {[%emt 0:00:05]} 38. Re5 {[%emt 0:00:16]} Rf5 {[%emt 0:00:03]} 39. Re3 {[%emt 0:00:56]} Kg7 {[%emt 0:01:33]} 40. Rc3 {[%emt 0:00:43]} Rf7 {[%emt 0:31:43]} 41. Be8 {[%emt 0:30:42]} Re7 {[%emt 0:00:11]} 42. Bxg6 {[%emt 0:00:28]} Kxg6 {[%emt 0:00:03]} 43. Rc5 {[%emt 0:00:00]} Kf6 {[%emt 0:00:00]} 44. Rc6+ {[%emt 0:00:00]} Kf5 {[%emt 0:00:00]} 45. Kg2 {[%emt 0:00:00]} Re5 {[%emt 0:00:00]} 1/2-1/2

[Event "Top 12 FRA-chT 2017"]
[Site "Chartres"]
[Date "2017.05.21"]
[Round "4"]
[White "Guichard, Pauline"]
[Black "Maisuradze, Nino"]
[Result "1/2-1/2"]
[ECO "A06"]
[WhiteElo "2312"]
[BlackElo "2260"]
[Annotator "NA"]
[PlyCount "189"]
[EventDate "2017.??.??"]
[EventType "team-tourn"]
[EventCountry "FRA"]
[SourceTitle "playchess.com"]
[Source "ChessBase"]
[SourceQuality "1"]
[WhiteTeam "Clichy"]
[BlackTeam "Bischwiller"]
[TimeControl "40/5400+30:1800+30"]

1. Nf3 {[%emt 0:00:00]} d5 {[%emt 0:00:56]} 2. g3 {[%emt 0:00:00]} Nf6 {[%emt 0:00:30]} 3. Bg2 {[%emt 0:00:00]} e6 {[%emt 0:02:26]} 4. O-O {[%emt 0:00:56]} Nbd7 {[%emt 0:01:12]} 5. d3 {[%emt 0:01:44]} Be7 {[%emt 0:02:41]} 6. Re1 {[%emt 0:00:35]} O-O {[%emt 0:01:30]} 7. e4 {[%emt 0:05:44]} dxe4 {[%emt 0:05:25]} 8. dxe4 {[%emt 0:00:18]} e5 {[%emt 0:00:07]} 9. Nbd2 {[%emt 0:02:07]} c6 {[%emt 0:00:34]} 10. Nc4 {[%emt 0:04:36]} Qc7 {[%emt 0:02:04]} 11. a4 {[%emt 0:00:59]} Re8 {[%emt 0:04:41]} 12. Bd2 {[%emt 0:03:37]} b6 {[%emt 0:04:35]} 13. Bc3 {[%emt 0:05:57]} Bf8 {[%emt 0:02:39]} 14. Bf1 {[%emt 0:01:57]} b5 {[%emt 0:11:49]} 15. Ba5 {[%emt 0:13:10]} Qb8 {[%emt 0:00:42]} 16. axb5 {[%emt 0:04:10]} cxb5 {[%emt 0:00:06]} 17. Ne3 {[%emt 0:02:31]} Nc5 {[%emt 0:25:40]} 18. Nd5 {[%emt 0:06:51]} Nxd5 {[%emt 0:01:10]} 19. exd5 {[%emt 0:00:11]} Bg4 {[%emt 0:03:25]} 20. Be2 {[%emt 0:03:51]} Bd6 {[%emt 0:07:08]} 21. Ng5 {[%emt 0:06:08]} Bf5 {[%emt 0:02:53]} 22. Bh5 {[%emt 0:05:22]} g6 {[%emt 0:04:09]} 23. Bg4 {[%emt 0:04:35]} Qc8 {[%emt 0:00:14]} 24. Qf3 {[%emt 0:02:36]} e4 {[%emt 0:06:53]} 25. Bxf5 {[%emt 0:12:19]} Qxf5 {[%emt 0:00:02]} 26. Qxf5 {[%emt 0:01:01]} gxf5 {[%emt 0:00:01]} 27. Nh3 {[%emt 0:00:20]} Be5 {[%emt 0:01:25]} 28. Ra2 {[%emt 0:00:42]} Na4 {[%emt 0:01:26]} 29. c3 {[%emt 0:03:55]} Nc5 {[%emt 0:00:33]} 30. Rd1 {[%emt 0:00:08]} Nd3 {[%emt 0:01:52]} 31. Kf1 {[%emt 0:02:01]} Bd6 {[%emt 0:01:56]} 32. f4 {[%emt 0:01:44]} Bc5 {[%emt 0:00:38]} 33. Ke2 {[%emt 0:02:23]} Rac8 {[%emt 0:01:06]} 34. b4 {[%emt 0:03:03]} Bd6 {[%emt 0:03:03]} 35. Kd2 {[%emt 0:00:39]} Rc4 {[%emt 0:01:22]} 36. Rb1 {[%emt 0:00:53]} Rec8 {[%emt 0:00:53]} 37. Rc2 {[%emt 0:00:16]} Be7 {[%emt 0:00:30]} 38. Ng1 {[%emt 0:00:19]} Bf6 {[%emt 0:00:38]} 39. Ne2 {[%emt 0:00:05]} h5 {[%emt 0:00:14]} 40. d6 {[%emt 0:01:16]} Bd8 {[%emt 0:30:49]} 41. d7 {[%emt 0:04:30]} Rb8 {[%emt 0:00:00]} 42. Ra1 {[%emt 0:11:31]} Bxa5 {[%emt 0:00:00]} 43. Rxa5 {[%emt 0:00:25]} Rc7 {[%emt 0:01:15]} 44. Rxb5 {[%emt 0:01:01]} Rd8 {[%emt 0:00:00]} 45. Ke3 {[%emt 0:08:29]} Rcxd7 {[%emt 0:01:13]} 46. Nd4 {[%emt 0:00:40]} a6 {[%emt 0:00:23]} 47. Rb6 {[%emt 0:04:19]} Rd5 {[%emt 0:00:15]} 48. Nc6 {[%emt 0:01:06]} R8d7 {[%emt 0:00:29]} 49. c4 {[%emt 0:00:38]} Ne1 {[%emt 0:00:51]} 50. cxd5 {[%emt 0:00:38]} Nxc2+ {[%emt 0:00:03]} 51. Kd2 {[%emt 0:01:03]} Na3 {[%emt 0:00:08]} 52. Rxa6 {[%emt 0:00:15]} Rxd5+ {[%emt 0:00:15]} 53. Ke2 {[%emt 0:00:40]} Rd3 {[%emt 0:00:08]} 54. Ne7+ {[%emt 0:00:17]} Kh7 {[%emt 0:00:58]} 55. Nxf5 {[%emt 0:00:04]} Nb5 {[%emt 0:00:43]} 56. Rh6+ {[%emt 0:02:48]} Kg8 {[%emt 0:00:02]} 57. Rxh5 {[%emt 0:00:24]} Nc3+ {[%emt 0:00:02]} 58. Ke1 {[%emt 0:00:24]} e3 {[%emt 0:02:06]} 59. Nxe3 {[%emt 0:00:43]} Rxe3+ {[%emt 0:00:01]} 60. Kd2 {[%emt 0:00:04]} Rf3 {[%emt 0:00:03]} 61. b5 {[%emt 0:00:34]} Na4 {[%emt 0:00:44]} 62. Rg5+ {[%emt 0:00:44]} Kh7 {[%emt 0:00:37]} 63. Rf5 {[%emt 0:00:39]} Kg7 {[%emt 0:00:53]} 64. Rg5+ {[%emt 0:00:06]} Kh7 {[%emt 0:00:39]} 65. h4 {[%emt 0:00:51]} Rb3 66. Kc2 {[%emt 0:00:01]} Rc3+ {[%emt 0:00:47]} 67. Kd2 Rb3 68. g4 {[%emt 0:00:41]} Nb6 {[%emt 0:01:14]} 69. Kc2 {[%emt 0:00:37]} Rb4 {[%emt 0:00:05]} 70. Rf5 {[%emt 0:00:10]} Kg7 {[%emt 0:00:28]} 71. h5 {[%emt 0:00:24]} Nc8 {[%emt 0:00:52]} 72. Kc3 {[%emt 0:00:11]} Rb1 {[%emt 0:00:07]} 73. Rd5 {[%emt 0:00:50]} Na7 {[%emt 0:01:10]} 74. Kc4 {[%emt 0:00:14]} Rc1+ {[%emt 0:00:26]} 75. Kb4 {[%emt 0:00:24]} Nc8 {[%emt 0:00:25]} 76. g5 {[%emt 0:00:50]} Rf1 {[%emt 0:00:37]} 77. f5 {[%emt 0:00:43]} Rb1+ {[%emt 0:00:23]} 78. Kc3 {[%emt 0:00:45]} Nb6 {[%emt 0:00:31]} 79. f6+ {[%emt 0:00:27]} Kh7 {[%emt 0:00:21]} 80. Rf5 {[%emt 0:00:42]} Kg8 {[%emt 0:00:40]} 81. Kd4 {[%emt 0:00:26]} Nd7 {[%emt 0:00:16]} 82. Rd5 {[%emt 0:00:47]} Rd1+ {[%emt 0:00:11]} 83. Ke4 {[%emt 0:00:04]} Re1+ {[%emt 0:00:20]} 84. Kf3 {[%emt 0:00:34]} Nf8 {[%emt 0:01:10]} 85. Rd8 {[%emt 0:01:08]} Kh7 {[%emt 0:00:33]} 86. Rc8 {[%emt 0:00:38]} Ne6 {[%emt 0:00:20]} 87. b6 {[%emt 0:00:30]} Rb1 {[%emt 0:00:14]} 88. g6+ {[%emt 0:00:30]} fxg6 {[%emt 0:00:06]} 89. f7 {[%emt 0:00:26]} Rf1+ {[%emt 0:01:23]} 90. Ke3 {[%emt 0:00:25]} Rxf7 {[%emt 0:00:19]} 91. Rc6 {[%emt 0:00:07]} Re7 {[%emt 0:00:23]} 92. hxg6+ {[%emt 0:00:27]} Kg7 {[%emt 0:00:49]} 93. Kd3 {[%emt 0:00:25]} Kxg6 {[%emt 0:00:25]} 94. b7 {[%emt 0:00:07]} Rxb7 {[%emt 0:00:05]} 95. Rxe6+ {[%emt 0:00:07]} 1/2-1/2